fUST/lending_fUST_20250704
["ID","MTS","AMOUNT","RATE_DAILY","PERIOD"]
[369570683,1751625049449,-460.0,0.00016712,2]
[369570685,1751625049458,-460.0,0.00016712,2]
[369570687,1751625049468,-959.2,0.00016712,2]
[369570689,1751625049478,-460.0,0.00016712,2]
[369570691,1751625049487,-842.35,0.00016712,2]
[369570693,1751625049498,-2004.54,0.00016712,2]
[369570696,1751625049511,-460.0,0.00016712,2]
[369570697,1751625049521,-648.33,0.00016712,2]
[369570700,1751625049533,-460.0,0.00016712,2]
[369570701,1751625049546,-470.67,0.00016712,2]
[369570704,1751625049556,-460.0,0.00016712,2]
[369570706,1751625049565,-1116.37,0.00016712,2]
[369570707,1751625049574,-460.0,0.00016712,2]
[369570709,1751625049584,-716.86,0.00016712,2]
[369570711,1751625049594,-460.0,0.00016712,2]
[369570713,1751625049603,-1299.54,0.00016712,2]
[369570715,1751625049612,-460.0,0.00016712,2]
[369570717,1751625049621,-719.43,0.00016712,2]
[369570719,1751625049630,-460.0,0.00016712,2]
[369570721,1751625049639,-460.0,0.00016712,2]
[369570723,1751625049648,-151.0,0.00016712,2]
[369570725,1751625049657,-151.0,0.00016712,2]
[369570727,1751625049667,-151.0,0.00016712,2]
[369570729,1751625049676,-460.0,0.00016712,2]
[369570731,1751625049685,-3123.4,0.00016712,2]
[369570733,1751625049695,-3336.36,0.00016712,2]
[369570735,1751625049705,-151.0,0.00016712,2]
[369570737,1751625049715,-191.190559,0.00016712,2]
[369570739,1751625049725,-460.0,0.00016712,2]
[369570741,1751625049734,-3045.03,0.00016712,2]
[369570743,1751625049743,-922.06,0.00016712,2]
[369570745,1751625049752,-720.26,0.00016712,2]
[369570747,1751625049762,-4632.0,0.00016712,2]
[369570749,1751625049771,-460.0,0.00016712,2]
[369570751,1751625049780,-460.0,0.00016712,2]
[369570753,1751625049790,-817.29,0.00016712,2]
[369570755,1751625049799,-720.07,0.00016712,2]
[369570757,1751625049809,-4767.42,0.00016712,2]
[369570759,1751625049818,-271.13809,0.00016712,2]
[369570761,1751625049828,-271.13809,0.00016712,2]
[369570763,1751625049838,-271.13809,0.00016712,2]
[369570765,1751625049847,-705.46,0.00016712,2]
[369570767,1751625049856,-271.13809,0.00016712,2]
[369570768,1751625049865,-271.13809,0.00016712,2]
[369570769,1751625049875,-271.13809,0.00016712,2]
[369570770,1751625049884,-460.0,0.00016712,2]
[369570771,1751625049893,-727.04,0.00016712,2]
[369570772,1751625049902,-1559.61,0.00016712,2]
[369570773,1751625049912,-460.0,0.00016712,2]
[369570774,1751625049921,-460.0,0.00016712,2]
[369570775,1751625049931,-262.68,0.00016712,2]
[369570776,1751625049940,-2062.45,0.00016712,2]
[369570777,1751625049949,-715.78,0.00016712,2]
[369570778,1751625049959,-460.0,0.00016712,2]
[369570780,1751625049968,-1768.19,0.00016712,2]
[369570782,1751625049978,-810.44,0.00016712,2]
[369570784,1751625049988,-460.0,0.00016712,2]
[369570786,1751625049999,-2413.18,0.00016712,2]
[369570788,1751625050008,-460.0,0.00016712,2]
[369570790,1751625050018,-475.7,0.00016712,2]
[369570792,1751625050027,-1012.88,0.00016712,2]
[369570794,1751625050039,-1054.19,0.00016712,2]
[369570796,1751625050048,-474.03,0.00016712,2]
[369570798,1751625050058,-460.0,0.00016712,2]
[369570800,1751625050067,-954.69,0.00016712,2]
[369570802,1751625050077,-151.0,0.00016712,2]
[369570804,1751625050085,-460.0,0.00016712,2]
[369570806,1751625050095,-151.0,0.00016712,2]
[369570808,1751625050104,-460.0,0.00016712,2]
[369570810,1751625050113,-460.0,0.00016712,2]
[369570812,1751625050122,-151.0,0.00016712,2]
[369570813,1751625050132,-151.0,0.00016712,2]
[369570815,1751625050141,-968.65,0.00016712,2]
[369570817,1751625050151,-1481.66,0.00016712,2]
[369570819,1751625050160,-1069.65,0.00016712,2]
[369570821,1751625050169,-460.0,0.00016712,2]
[369570823,1751625050178,-460.0,0.00016712,2]
[369570825,1751625050187,-4648.64,0.00016712,2]
[369570827,1751625050197,-250.0,0.00016716,2]
[369570829,1751625050207,-250.0,0.00016753,2]
[369570832,1751625050218,-151.0,0.00016775,2]
[369570833,1751625050227,-250.0,0.00016789,2]
[369570835,1751625050236,-439.97846192,0.00016821,2]
[369570838,1751625050246,-2152.0,0.00016821,2]
[369570840,1751625050257,-646.0,0.00016821,2]
[369570842,1751625050267,-406.0,0.00016821,2]
[369570844,1751625050276,-426.698,0.00016821,2]
[369570846,1751625050286,-967.0,0.00016821,2]
[369570848,1751625050295,-250.0,0.00016826,2]
[369570850,1751625050305,-151.0,0.00016831,2]
[369570852,1751625050315,-151.0,0.00016831,2]
[369570854,1751625050325,-151.0,0.00016831,2]
[369570856,1751625050335,-151.0,0.00016831,2]
[369570858,1751625050344,-9521.95247374,0.00016831,2]
[369570860,1751625050354,-250.0,0.00016862,2]
[369570862,1751625050364,-250.0,0.00016899,2]
[369570864,1751625050374,-151.0,0.00016899,2]
[369570866,1751625050383,-518.82181,0.00016914,2]
[369570868,1751625050392,-250.0,0.00016936,2]
[369570870,1751625050403,-247.364,0.00016958,2]
[369570872,1751625050413,-250.0,0.00016958,2]
[369570874,1751625050423,-250.0,0.00016972,2]
[369570876,1751625050433,-439.97846192,0.00016982,2]
[369570878,1751625050444,-151.0,0.00016986,2]
[369570880,1751625050454,-151.0,0.00016986,2]
[369570882,1751625050463,-168.645758,0.00016986,2]
[369570884,1751625050473,-151.522985,0.00016986,2]
[369570886,1751625050483,-460.0,0.00016986,2]
[369570888,1751625050493,-151.0,0.00016986,2]
[369570890,1751625050502,-152.091701,0.00016986,2]
[369570892,1751625050511,-460.0,0.00016986,2]
[369570895,1751625050524,-151.0,0.00016986,2]
[369570897,1751625050534,-151.0,0.00016986,2]
[369570899,1751625050543,-460.0,0.00016986,2]
[369570901,1751625050552,-460.0,0.00016986,2]
[369570903,1751625050561,-460.0,0.00016986,2]
[369570905,1751625050571,-460.0,0.00016986,2]
[369570907,1751625050580,-460.0,0.00016986,2]
[369570909,1751625050590,-460.0,0.00016986,2]
[369570911,1751625050600,-460.0,0.00016986,2]
[369570913,1751625050611,-460.0,0.00016986,2]
[369570915,1751625050620,-460.0,0.00016986,2]
[369570917,1751625050629,-460.0,0.00016986,2]
[369570919,1751625050638,-151.0,0.00016986,2]
[369570921,1751625050647,-151.0,0.00016986,2]
[369570923,1751625050656,-460.0,0.00016986,2]
[369570925,1751625050666,-460.0,0.00016986,2]
[369570927,1751625050675,-561.92141535,0.00016986,2]
[369570929,1751625050684,-460.0,0.00016986,2]
[369570931,1751625050694,-460.0,0.00016986,2]
[369570933,1751625050703,-460.0,0.00016986,2]
[369570935,1751625050712,-460.0,0.00016986,2]
[369570937,1751625050723,-460.0,0.00016986,2]
[369570939,1751625050732,-460.0,0.00016986,2]
[369570941,1751625050741,-460.0,0.00016986,2]
[369570943,1751625050750,-460.0,0.00016986,2]
[369570945,1751625050760,-460.0,0.00016986,2]
[369570947,1751625050770,-349.0528105,0.00016986,2]
[369570949,1751625050779,-609.47,0.00016986,2]
[369570952,1751625050790,-460.0,0.00016986,2]
[369570954,1751625050799,-711.3,0.00016986,2]
[369570956,1751625050808,-492.82389743,0.00016986,2]
[369570958,1751625050818,-460.0,0.00016986,2]
[369570960,1751625050827,-460.0,0.00016986,2]
[369570962,1751625050836,-878.14,0.00016986,2]
[369570964,1751625050846,-738.68,0.00016986,2]
[369570966,1751625050855,-460.0,0.00016986,2]
[369570968,1751625050864,-460.0,0.00016986,2]
[369570970,1751625050873,-460.0,0.00016986,2]
[369570972,1751625050883,-460.0,0.00016986,2]
[369570974,1751625050892,-460.0,0.00016986,2]
[369570976,1751625050901,-460.0,0.00016986,2]
[369570978,1751625050910,-460.0,0.00016986,2]
[369570980,1751625050919,-151.0,0.00016986,2]
[369570982,1751625050928,-460.0,0.00016986,2]
[369570984,1751625050938,-460.0,0.00016986,2]
[369570986,1751625050947,-460.0,0.00016986,2]
[369570988,1751625050956,-460.0,0.00016986,2]
[369570990,1751625050965,-460.0,0.00016986,2]
[369570992,1751625050975,-460.0,0.00016986,2]
[369570994,1751625050984,-185.39683,0.00016986,2]
[369570996,1751625050993,-4792.27,0.00016986,2]
[369570998,1751625051002,-905.04,0.00016986,2]
[369571000,1751625051011,-39837.23311682,0.00016986,2]
[369572187,1751625070310,500.0,0.00027397,120]
[369572196,1751625133887,201.87749838,0.00014704,2]
[369572226,1751625421282,-4429.97319963,0.000183,30]
[369572283,1751625510924,2683.5485601,0.000148,2]
[369572286,1751625552563,665.523271,0.00013699,2]
[369572287,1751625572588,791.33909624,0.000148,2]
[369572288,1751625572613,2434.13403351,0.000148,2]
[369572289,1751625631571,2809.68673533,0.000148,2]
[369572290,1751625676306,545.7427421,0.00014726,2]
[369572291,1751625701396,151.0,0.00027397,120]
[369572292,1751625712011,164.87073583,0.00014745,2]
[369572294,1751625881208,10000.0,0.00014638,2]
[369572295,1751625963501,687.001961,0.00014697,2]
[369572297,1751626123264,2000.0,0.00027397,120]
[369572337,1751626232347,-1060.0688955,0.00015091,2]
[369572339,1751626232357,-919.5737266,0.00015196,2]
[369572341,1751626232366,-300.0,0.000152,2]
[369572343,1751626232376,-1200.0,0.000152,2]
[369572345,1751626232386,-11719.83606865,0.00015201,2]
[369572348,1751626232400,-5000.0,0.00015201,2]
[369573375,1751626246423,-2357.98332556,0.0001506,2]
[369576651,1751626412779,167.56295304,0.0001462,2]
[369576654,1751626612180,3191.00083919,0.00014373,2]
[369576655,1751626612204,20000.0,0.00014373,2]
[369576656,1751626612230,1708.99916081,0.00014373,2]
[369576657,1751626624802,-259.5718751,0.00014959,2]
[369576658,1751626629991,-18.4660897,0.00014959,2]
[369576660,1751626685323,-163.61353422,0.00014959,2]
[369576661,1751626713668,2906.86697578,0.00027397,120]
[369576662,1751626813857,500.281,0.000183,30]
[369576663,1751626859901,632.247107,0.00013699,2]
[369576664,1751626860556,-114.42443058,0.00014959,2]
[369576666,1751626928076,-201.50657068,0.0001488,2]
[369576667,1751626930334,-244.71187871,0.0001488,2]
[369576668,1751626932675,-180.17656023,0.0001488,2]
[369576669,1751626934977,-177.49879296,0.0001488,2]
[369576670,1751626941502,-255.20803935,0.0001488,2]
[369576671,1751626947163,343.500981,0.00014549,2]
[369576672,1751626949972,-155.38866926,0.0001488,2]
[369576673,1751626953637,-191.84071699,0.0001488,2]
[369576674,1751626956972,1950.9042542,0.00014549,2]
[369576675,1751626958432,-282.6729538,0.0001488,2]
[369576676,1751626960774,-291.27136185,0.0001488,2]
[369576681,1751627325765,15364.34849699,0.00014549,2]
[369576682,1751627325790,20000.0,0.00014549,2]
[369576683,1751627325813,9759.87901291,0.00014549,2]
[369576694,1751627407832,920.0,0.00027397,120]
[369576732,1751627432483,-160.0,0.00015611,2]
[369576734,1751627432494,-500.0,0.00015616,2]
[369576736,1751627432504,-168.0,0.00015909,2]
[369576738,1751627432513,-110.26,0.00016328,2]
[369576742,1751627432524,-97.14,0.00016328,2]
[369576744,1751627432535,-168.0,0.0001633,2]
[369576746,1751627432544,-300.0,0.00016337,2]
[369576748,1751627432553,-671.0,0.00016337,2]
[369576750,1751627432563,-540.50663771,0.00016338,2]
[369576752,1751627432573,-7895.65902212,0.00016338,2]
[369576754,1751627432590,-6343.42698035,0.00016338,2]
[369576757,1751627432601,-2818.28446965,0.00016338,2]
[369576759,1751627432612,-1115.51770175,0.00016338,2]
[369577181,1751627437208,-500.0,0.00016337,2]
[369577182,1751627437218,-492.53353941,0.00016337,2]
[369577183,1751627437228,-269.52648145,0.00016337,2]
[369577184,1751627437238,-35546.36987582,0.00016338,2]
[369577185,1751627437248,-168.0,0.00016366,2]
[369577186,1751627437258,-768.796,0.00016428,2]
[369577187,1751627437267,-500.0,0.00016437,2]
[369577189,1751627437276,-500.0,0.00016437,2]
[369577190,1751627437287,-500.0,0.00016437,2]
[369577191,1751627437296,-500.0,0.00016437,2]
[369577192,1751627437305,-285.45462138,0.00016437,2]
[369577193,1751627437314,-500.0,0.00016437,2]
[369577194,1751627437324,-500.0,0.00016437,2]
[369577195,1751627437334,-500.0,0.00016437,2]
[369577196,1751627437343,-500.0,0.00016437,2]
[369577197,1751627437352,-244.836,0.00016437,2]
[369577198,1751627437361,-500.0,0.00016437,2]
[369577199,1751627437370,-500.0,0.00016437,2]
[369577200,1751627437380,-500.0,0.00016437,2]
[369577201,1751627437389,-500.0,0.00016437,2]
[369577202,1751627437398,-500.0,0.00016437,2]
[369577203,1751627437407,-500.0,0.00016437,2]
[369577204,1751627437417,-500.0,0.00016437,2]
[369577205,1751627437426,-500.0,0.00016437,2]
[369577206,1751627437436,-500.0,0.00016437,2]
[369577207,1751627437445,-500.0,0.00016437,2]
[369577208,1751627437454,-500.0,0.00016437,2]
[369577209,1751627437464,-500.0,0.00016437,2]
[369577210,1751627437473,-547.9408202,0.00016437,2]
[369577211,1751627437482,-2361.56342036,0.00016437,2]
[369577212,1751627437492,-2361.56342036,0.00016437,2]
[369577213,1751627437501,-2361.56342036,0.00016437,2]
[369577214,1751627437510,-2361.56342036,0.00016437,2]
[369577215,1751627437519,-2361.56342036,0.00016437,2]
[369577216,1751627437529,-500.0,0.00016438,2]
[369577217,1751627437539,-460.0,0.00016438,2]
[369577218,1751627437548,-460.0,0.00016438,2]
[369577219,1751627437557,-151.0,0.00016438,2]
[369577220,1751627437566,-460.0,0.00016438,2]
[369577221,1751627437575,-243.938853,0.00016438,2]
[369577222,1751627437584,-151.0,0.00016438,2]
[369577223,1751627437594,-410.0,0.00016438,2]
[369577224,1751627437604,-151.0,0.00016438,2]
[369577225,1751627437613,-431.93431337,0.00016438,2]
[369577226,1751627437622,-460.0,0.00016438,2]
[369577227,1751627437631,-500.0,0.00016438,2]
[369577228,1751627437640,-436.08343695,0.00016438,2]
[369577229,1751627437649,-500.0,0.00016438,2]
[369577230,1751627437659,-460.0,0.00016438,2]
[369577231,1751627437668,-460.0,0.00016438,2]
[369577232,1751627437677,-460.0,0.00016438,2]
[369577233,1751627437686,-460.0,0.00016438,2]
[369577234,1751627437695,-460.0,0.00016438,2]
[369577235,1751627437704,-462.24847828,0.00016438,2]
[369577236,1751627437713,-460.79451957,0.00016438,2]
[369577237,1751627437723,-466.10684219,0.00016438,2]
[369577238,1751627437732,-460.0,0.00016438,2]
[369577239,1751627437741,-460.0,0.00016438,2]
[369577240,1751627437750,-461.14352202,0.00016438,2]
[369577241,1751627437759,-460.0,0.00016438,2]
[369577242,1751627437768,-460.0,0.00016438,2]
[369577243,1751627437778,-460.0,0.00016438,2]
[369577244,1751627437788,-151.0,0.00016438,2]
[369577246,1751627437798,-460.0,0.00016438,2]
[369577247,1751627437807,-460.0,0.00016438,2]
[369577249,1751627437816,-484.58066166,0.00016438,2]
[369577251,1751627437826,-460.0,0.00016438,2]
[369577253,1751627437836,-460.0,0.00016438,2]
[369577254,1751627437846,-460.71989959,0.00016438,2]
[369577255,1751627437855,-461.34069969,0.00016438,2]
[369577256,1751627437865,-151.0,0.00016438,2]
[369577257,1751627437874,-151.0,0.00016438,2]
[369577258,1751627437884,-488.95,0.00016438,2]
[369577259,1751627437893,-460.0,0.00016438,2]
[369577260,1751627437903,-770.78,0.00016438,2]
[369577261,1751627437913,-460.0,0.00016438,2]
[369577262,1751627437923,-460.0,0.00016438,2]
[369577263,1751627437932,-460.0,0.00016438,2]
[369577264,1751627437942,-460.0,0.00016438,2]
[369577265,1751627437952,-460.0,0.00016438,2]
[369577266,1751627437964,-151.0,0.00016438,2]
[369577267,1751627437973,-151.0,0.00016438,2]
[369577268,1751627437983,-151.0,0.00016438,2]
[369577269,1751627437993,-920.35,0.00016438,2]
[369577270,1751627438003,-460.0,0.00016438,2]
[369577271,1751627438014,-629.12,0.00016438,2]
[369577272,1751627438024,-460.0,0.00016438,2]
[369577273,1751627438035,-162.682854,0.00016438,2]
[369577274,1751627438045,-460.0,0.00016438,2]
[369577275,1751627438055,-162.682854,0.00016438,2]
[369577277,1751627438064,-151.0,0.00016438,2]
[369577278,1751627438074,-151.0,0.00016438,2]
[369577279,1751627438083,-460.0,0.00016438,2]
[369577280,1751627438092,-460.0,0.00016438,2]
[369577281,1751627438102,-460.0,0.00016438,2]
[369577282,1751627438112,-460.0,0.00016438,2]
[369577283,1751627438121,-764.05,0.00016438,2]
[369577284,1751627438131,-460.0,0.00016438,2]
[369577285,1751627438141,-460.0,0.00016438,2]
[369577286,1751627438150,-460.0,0.00016438,2]
[369577287,1751627438159,-151.0,0.00016438,2]
[369577288,1751627438169,-151.0,0.00016438,2]
[369577289,1751627438179,-151.0,0.00016438,2]
[369577290,1751627438189,-151.0,0.00016438,2]
[369577291,1751627438198,-151.0,0.00016438,2]
[369577292,1751627438208,-255.13873955,0.00016438,2]
[369577293,1751627438218,-156.01390519,0.00016438,2]
[369577294,1751627438227,-151.0,0.00016438,2]
[369577295,1751627438237,-151.0,0.00016438,2]
[369577296,1751627438246,-151.0,0.00016438,2]
[369577297,1751627438256,-165.0,0.00016438,2]
[369577298,1751627438265,-151.0,0.00016438,2]
[369577299,1751627438275,-151.0,0.00016438,2]
[369577300,1751627438285,-151.0,0.00016438,2]
[369577301,1751627438294,-460.0,0.00016438,2]
[369577302,1751627438304,-470.43783862,0.00016438,2]
[369577303,1751627438314,-460.0,0.00016438,2]
[369577304,1751627438324,-378.54072738,0.00016438,2]
[369577305,1751627438333,-460.0,0.00016438,2]
[369577306,1751627438343,-460.0,0.00016438,2]
[369577307,1751627438352,-460.0,0.00016438,2]
[369577308,1751627438363,-460.0,0.00016438,2]
[369577309,1751627438372,-460.0,0.00016438,2]
[369577310,1751627438382,-460.0,0.00016438,2]
[369577311,1751627438391,-460.0,0.00016438,2]
[369577312,1751627438401,-460.0,0.00016438,2]
[369577313,1751627438410,-1665.28,0.00016438,2]
[369577314,1751627438420,-460.0,0.00016438,2]
[369577315,1751627438430,-880.61,0.00016438,2]
[369577316,1751627438439,-460.0,0.00016438,2]
[369577317,1751627438449,-681.42,0.00016438,2]
[369577318,1751627438458,-460.0,0.00016438,2]
[369577319,1751627438592,-1053.86,0.00016438,2]
[369577320,1751627438603,-460.0,0.00016438,2]
[369577321,1751627438613,-151.0,0.00016438,2]
[369577322,1751627438623,-151.0,0.00016438,2]
[369577323,1751627438632,-151.0,0.00016438,2]
[369577324,1751627438642,-460.0,0.00016438,2]
[369577325,1751627438652,-460.0,0.00016438,2]
[369577326,1751627438661,-460.0,0.00016438,2]
[369577327,1751627438671,-875.13,0.00016438,2]
[369577328,1751627438680,-300.92974292,0.00016438,2]
[369577329,1751627438689,-460.0,0.00016438,2]
[369577330,1751627438699,-460.0,0.00016438,2]
[369577331,1751627438709,-460.0,0.00016438,2]
[369577332,1751627438719,-186.28122798,0.00016438,2]
[369577333,1751627438728,-887.93,0.00016438,2]
[369577334,1751627438738,-460.0,0.00016438,2]
[369577335,1751627438747,-460.0,0.00016438,2]
[369577336,1751627438756,-151.0,0.00016438,2]
[369577337,1751627438766,-151.0,0.00016438,2]
[369577338,1751627438775,-151.0,0.00016438,2]
[369577339,1751627438785,-460.0,0.00016438,2]
[369577340,1751627438794,-460.0,0.00016438,2]
[369577341,1751627438805,-151.0,0.00016438,2]
[369577342,1751627438816,-151.0,0.00016438,2]
[369577343,1751627438826,-151.0,0.00016438,2]
[369577344,1751627438835,-794.91,0.00016438,2]
[369577345,1751627438844,-460.0,0.00016438,2]
[369577346,1751627438854,-1931.06,0.00016438,2]
[369577347,1751627438864,-460.0,0.00016438,2]
[369577348,1751627438873,-460.0,0.00016438,2]
[369577349,1751627438883,-460.0,0.00016438,2]
[369577350,1751627438892,-460.0,0.00016438,2]
[369577351,1751627438901,-460.0,0.00016438,2]
[369577352,1751627438911,-980.51,0.00016438,2]
[369577353,1751627438920,-3339.86,0.00016438,2]
[369577354,1751627438930,-1358.19,0.00016438,2]
[369577355,1751627438939,-738.23,0.00016438,2]
[369577356,1751627438949,-412.37992141,0.00016438,2]
[369577357,1751627438965,-47.62007859,0.00016438,2]
[369577358,1751627438978,-460.0,0.00016438,2]
[369577359,1751627438987,-460.0,0.00016438,2]
[369577360,1751627438997,-460.0,0.00016438,2]
[369577361,1751627439007,-460.0,0.00016438,2]
[369577362,1751627439017,-460.0,0.00016438,2]
[369577363,1751627439026,-460.0,0.00016438,2]
[369577364,1751627439035,-500.8,0.00016438,2]
[369577365,1751627439045,-236.54373599,0.00016438,2]
[369577366,1751627439057,-223.45626401,0.00016438,2]
[369577367,1751627439066,-354.29339341,0.00016438,2]
[369577383,1751627439241,-438.33660659,0.00016438,2]
[369577385,1751627439251,-460.0,0.00016438,2]
[369577387,1751627439260,-460.0,0.00016438,2]
[369577389,1751627439269,-460.0,0.00016438,2]
[369577391,1751627439280,-151.0,0.00016438,2]
[369577393,1751627439292,-151.0,0.00016438,2]
[369577395,1751627439302,-151.0,0.00016438,2]
[369577397,1751627439311,-460.0,0.00016438,2]
[369577399,1751627439319,-151.0,0.00016438,2]
[369577401,1751627439328,-151.0,0.00016438,2]
[369577403,1751627439338,-460.0,0.00016438,2]
[369577405,1751627439347,-151.0,0.00016438,2]
[369577407,1751627439356,-686.46,0.00016438,2]
[369577409,1751627439365,-1614.07,0.00016438,2]
[369577411,1751627439374,-347.9404131,0.00016438,2]
[369577558,1751627440878,-112.0595869,0.00016438,2]
[369577560,1751627440887,-191.3704131,0.00016438,2]
[369577574,1751627441014,-185.013299,0.00016438,2]
[369577860,1751627443654,-452.11151078,0.00016337,2]
[369577862,1751627443663,-83.6162879,0.00016438,2]
[369577864,1751627443672,-151.0,0.00016438,2]
[369577866,1751627443681,-151.0,0.00016438,2]
[369577868,1751627443690,-460.0,0.00016438,2]
[369577870,1751627443699,-460.0,0.00016438,2]
[369577872,1751627443709,-1513.9,0.00016438,2]
[369577874,1751627443718,-907.83,0.00016438,2]
[369577876,1751627443727,-1677.52863838,0.00016438,2]
[369578159,1751627446761,-1582.63136162,0.00016438,2]
[369578161,1751627446770,-460.0,0.00016438,2]
[369578163,1751627446779,-631.8829611,0.00016438,2]
[369578165,1751627446791,-295.1970389,0.00016438,2]
[369578167,1751627446800,-460.0,0.00016438,2]
[369578169,1751627446810,-460.0,0.00016438,2]
[369578171,1751627446819,-278.4427182,0.00016438,2]
[369581237,1751627588157,2598.0,0.00027397,120]
[369581244,1751627933276,619.470136,0.00013699,2]
[369581247,1751628242227,188.15209436,0.00014563,2]
[369581248,1751628244390,751.85576908,0.00014563,2]
[369581260,1751628458904,1091.37991,0.00027397,120]
[369581317,1751628631934,-171.75049,0.00015246,2]
[369581319,1751628631943,-538.42331002,0.00015309,2]
[369581673,1751628642879,-661.57668998,0.00015309,2]
[369581675,1751628642889,-300.0,0.00015309,2]
[369581677,1751628642898,-5113.58167579,0.0001531,2]
[369581679,1751628642910,-8954.97748854,0.0001531,2]
[369581683,1751628642934,-10831.44083567,0.0001531,2]
[369581685,1751628642944,-500.0,0.00015616,2]
[369581687,1751628642953,-164.28529724,0.00015945,2]
[369581689,1751628642962,-207.4,0.00016003,2]
[369581691,1751628642971,-2357.30366749,0.00016337,2]
[369581693,1751628642981,-500.0,0.00016337,2]
[369581696,1751628642990,-500.0,0.00016337,2]
[369581700,1751628643000,-590.49233398,0.00016337,2]
[369581703,1751628643009,-500.0,0.00016337,2]
[369581705,1751628643018,-500.0,0.00016337,2]
[369581707,1751628643028,-369.98859146,0.00016337,2]
[369581709,1751628643037,-432.40531016,0.00016338,2]
[369581711,1751628643047,-17568.59174486,0.00016338,2]
[369581713,1751628643056,-500.0,0.00016437,2]
[369581715,1751628643066,-500.0,0.00016437,2]
[369581717,1751628643075,-500.0,0.00016437,2]
[369581719,1751628643085,-500.0,0.00016437,2]
[369581721,1751628643095,-500.0,0.00016437,2]
[369581723,1751628643104,-500.0,0.00016437,2]
[369581725,1751628643114,-500.0,0.00016437,2]
[369581727,1751628643124,-500.0,0.00016437,2]
[369581729,1751628643133,-172.03736254,0.00016437,2]
[369581731,1751628643143,-500.0,0.00016437,2]
[369581733,1751628643152,-500.0,0.00016437,2]
[369581735,1751628643162,-500.0,0.00016437,2]
[369581737,1751628643171,-500.0,0.00016437,2]
[369581739,1751628643180,-500.0,0.00016437,2]
[369581741,1751628643189,-500.0,0.00016437,2]
[369581743,1751628643199,-500.0,0.00016437,2]
[369581745,1751628643208,-500.0,0.00016437,2]
[369581747,1751628643218,-500.0,0.00016437,2]
[369581749,1751628643227,-500.0,0.00016437,2]
[369581751,1751628643236,-500.0,0.00016437,2]
[369581753,1751628643245,-500.0,0.00016437,2]
[369581755,1751628643255,-500.0,0.00016437,2]
[369581757,1751628643264,-974.10037985,0.00016437,2]
[369581759,1751628643274,-974.10037985,0.00016437,2]
[369581761,1751628643284,-974.10037985,0.00016437,2]
[369581763,1751628643293,-974.10037985,0.00016437,2]
[369581765,1751628643302,-974.10037985,0.00016437,2]
[369581767,1751628643311,-974.10037985,0.00016437,2]
[369581769,1751628643321,-974.10037985,0.00016437,2]
[369581771,1751628643330,-181.38753425,0.00016437,2]
[369581774,1751628643342,-1229.350813,0.00016437,2]
[369581776,1751628643353,-10.56266154,0.00016437,2]
[369581778,1751628643362,-615.037,0.00016437,2]
[369581780,1751628643371,-460.0,0.00016438,2]
[369581782,1751628643380,-460.0,0.00016438,2]
[369581784,1751628643389,-460.0,0.00016438,2]
[369581786,1751628643399,-460.0,0.00016438,2]